bitfinex/quotes_ETHUSD_20250114
["timestamp","ask_amount","ask_price","bid_price","bid_amount"]
[1736888087102,0.02929573,3224.1,3223.3,3.9313]
[1736888087362,3.09220362,3224.3,3223.3,3.9313]
[1736888087504,0.02927715,3224.0,3223.3,3.9313]
[1736888087712,0.0293143,3224.2,3223.3,3.9313]
[1736888088068,0.02925857,3223.9,3223.3,3.9313]
[1736888088246,2.93293028,3224.5,3223.3,0.8289]
[1736888088247,3.0,3224.4,3223.3,0.8289]
[1736888088449,0.02923999,3223.8,3223.3,0.8289]
[1736888088766,0.02926484,3223.7,3223.3,0.8289]
[1736888089087,3.10175,3224.0,3223.3,0.8289]
[1736888089561,0.02921429,3223.9,3223.3,0.8289]
[1736888089965,3.4501493,3224.2,3223.3,0.8289]
[1736888090261,3.10169,3224.1,3223.3,0.8289]
[1736888090434,0.3485293,3224.2,3223.3,0.8289]
[1736888090634,0.3485293,3224.2,3223.3,3.9313]
[1736888090819,0.3485293,3224.2,3223.3,0.8289]
[1736888091170,3.02920556,3224.1,3223.3,0.8289]
[1736888091315,0.63106651,3224.0,3223.3,0.8289]
[1736888091726,3.13098561,3223.9,3223.3,0.8289]
[1736888092772,0.02915561,3223.9,3223.3,0.8289]
[1736888094178,3.3485293,3224.2,3223.3,3.10231]
[1736888094340,0.192,3224.5,3223.5,0.7977]
[1736888094545,0.02910198,3224.2,3223.5,0.7977]
[1736888094780,3.0,3224.2,3223.5,0.7977]
[1736888094928,3.02910198,3224.2,3223.5,0.7977]
[1736888095802,3.13069198,3224.2,3223.5,0.7977]
[1736888096177,3.10172,3224.1,3223.5,0.7977]
[1736888097173,9.22622028,3224.5,3223.5,0.7977]
[1736888097402,3.10149,3224.3,3223.5,0.7977]
[1736888097905,0.02910198,3224.2,3223.6,0.7977]
[1736888098207,0.02910195,3224.3,3223.8,0.7977]
[1736888098675,3.0,3224.5,3223.8,0.7977]
[1736888099034,0.02912052,3224.4,3223.8,0.7977]
[1736888100406,0.02912052,3224.4,3223.0,0.63356823]
[1736888100407,3.10189,3223.9,3223.4,0.7977]
[1736888100579,3.10169,3224.1,3223.4,0.7977]
[1736888100773,0.02919879,3223.8,3223.4,0.7977]
[1736888100998,3.0,3224.1,3223.4,0.7977]
[1736888101203,3.10221,3223.5,3222.9,0.7977]
[1736888101413,3.31313284,3223.5,3222.9,0.7977]
[1736888101712,3.10248,3223.3,3222.9,0.7977]
[1736888102219,0.31313284,3223.5,3222.9,0.7977]
[1736888102386,3.10266,3223.1,3222.6,0.7883]
[1736888102711,3.1027,3223.0,3222.6,0.7883]
[1736888103122,0.31313284,3223.5,3222.6,0.7883]
[1736888103123,3.1028,3222.9,3222.6,0.7883]
[1736888103516,3.31313284,3223.5,3222.6,0.7883]
[1736888103814,3.10258,3223.2,3222.6,0.7883]
[1736888104493,2.93293028,3223.3,3222.6,0.7883]
[1736888104821,3.10281,3222.9,3222.6,0.7883]
[1736888105318,6.03537028,3223.3,3222.6,0.7883]
[1736888105683,0.93482231,3223.4,3222.6,0.7883]
[1736888105888,3.10232,3223.4,3222.6,0.7883]
[1736888106083,3.10194,3223.8,3222.6,0.7883]
[1736888106308,3.10198,3223.8,3222.9,0.7883]
[1736888106507,5.93293028,3224.2,3222.9,0.7883]
[1736888106508,0.192,3223.9,3222.9,3.89101]
[1736888106816,3.102,3223.8,3222.9,0.7883]
[1736888107034,0.192,3223.9,3222.9,0.7883]
[1736888107197,0.192,3223.9,3222.8,3.10289]
[1736888107381,0.192,3223.9,3223.0,0.7883]
[1736888107724,3.10157,3224.2,3223.3,3.10238]
[1736888107930,3.10174,3224.0,3223.2,0.7883]
[1736888108138,2.93293028,3224.2,3223.2,0.7883]
[1736888108343,3.10184,3223.9,3223.2,0.7883]
[1736888110037,3.10168,3224.1,3223.2,0.7883]
[1736888110237,3.10183,3223.9,3223.2,0.7883]
[1736888110730,2.93293028,3224.2,3223.2,0.7883]
[1736888110731,3.10169,3224.1,3223.2,0.7883]
[1736888110950,2.93293028,3224.2,3223.2,0.7883]
[1736888111105,0.62264003,3224.1,3223.2,0.7883]
[1736888111443,3.10215,3223.6,3223.2,0.7883]
[1736888111850,3.10224,3223.5,3223.2,0.7883]
[1736888112401,6.03480028,3223.9,3223.2,0.7883]
[1736888112602,3.10212,3223.7,3223.2,0.7883]
[1736888112933,2.93293028,3223.9,3223.2,0.7883]
[1736888113134,3.10206,3223.7,3223.2,0.7883]
[1736888113791,3.102,3223.8,3223.2,0.7883]
[1736888114119,3.10191,3223.9,3223.2,0.7883]
[1736888114427,3.10166,3224.1,3223.3,0.7623]
[1736888114795,3.2935,3224.3,3223.3,3.86466]
[1736888114994,3.10129,3224.5,3223.6,0.7623]
[1736888115192,3.10158,3224.2,3223.6,0.7623]
[1736888117413,3.26225928,3224.5,3223.6,0.7623]
[1736888117599,2.93293028,3224.2,3223.6,0.7623]
[1736888118035,3.10159,3224.2,3223.6,0.7623]
[1736888119102,3.1017,3224.1,3223.6,0.7623]
[1736888119303,3.41187,3224.1,3223.6,0.7623]
[1736888119906,3.10174,3224.0,3223.6,0.7623]
[1736888120236,3.10219,3223.6,3223.3,0.7802]
[1736888120827,0.192,3223.7,3223.3,0.7802]
[1736888121042,3.10254,3223.2,3222.7,0.7802]
[1736888121408,3.10264,3223.1,3222.7,0.7802]
[1736888121816,3.10271,3223.0,3222.7,0.7802]
[1736888122142,3.10283,3222.9,3222.7,0.7802]
[1736888122359,3.1028,3222.9,3222.7,0.7802]
[1736888123112,0.310264,3223.1,3222.7,0.7802]
[1736888123445,3.10272,3223.0,3222.7,0.7802]
[1736888124459,3.10252,3223.2,3222.7,0.7802]
[1736888124744,3.10242,3223.3,3222.7,0.7802]
[1736888125561,2.93293028,3223.6,3222.7,0.7802]
[1736888125717,2.93293028,3224.0,3222.7,0.7802]
[1736888125926,3.10192,3223.9,3222.7,0.7802]
[1736888126222,3.10192,3223.9,3223.1,0.7802]
[1736888126659,0.192,3224.0,3223.1,0.7802]
[1736888126858,3.2938,3224.0,3223.1,0.7802]
[1736888127061,3.10185,3223.9,3223.1,0.7802]
[1736888127262,0.192,3224.0,3223.1,3.88279]
[1736888127534,3.29373,3224.0,3223.2,0.7802]
[1736888128362,3.10184,3223.9,3223.2,0.7802]
[1736888128523,3.0,3224.2,3223.2,0.7802]
[1736888128723,6.71408303,3224.2,3223.2,3.88269]
[1736888128935,3.0,3224.2,3223.2,0.7802]
[1736888129160,3.10173,3224.0,3223.2,0.7802]
[1736888130260,3.0,3224.2,3223.2,0.7802]
[1736888130435,3.10193,3223.8,3223.2,0.7802]
[1736888130837,6.10157,3224.2,3223.2,0.7802]
[1736888130838,3.10205,3223.7,3223.2,0.7802]
[1736888131045,0.310205,3223.7,3223.2,0.7802]
[1736888131259,3.1021,3223.7,3223.2,0.7802]
[1736888131628,3.10215,3223.6,3223.2,0.7802]
[1736888132228,2.93293028,3223.6,3223.2,0.7802]
[1736888132568,3.10252,3223.2,3222.9,0.7717]
[1736888132884,3.10236,3223.4,3222.9,0.7717]
[1736888133090,3.10176,3224.0,3223.0,3.10266]
[1736888133248,3.10156,3224.2,3222.8,0.7717]
[1736888133447,3.10156,3224.2,3223.3,0.7717]
[1736888133683,3.32361568,3224.2,3223.3,0.7717]
[1736888133889,2.93293028,3223.9,3223.3,0.7717]
[1736888134752,3.10203,3223.7,3223.3,0.7717]
[1736888135583,3.10212,3223.6,3223.3,0.7717]
[1736888136146,3.10197,3223.8,3223.3,0.7717]
[1736888136386,3.10181,3224.0,3223.3,0.7717]
[1736888136747,3.4922654,3224.2,3223.3,0.7717]
[1736888136980,6.10138,3224.4,3223.4,0.7717]
[1736888136981,0.192,3224.4,3223.4,0.7717]
[1736888137192,3.10165,3224.1,3223.4,0.7717]
[1736888137481,3.12493028,3224.4,3223.4,0.7717]
[1736888137482,6.03432028,3224.4,3223.4,0.7717]
[1736888137682,3.73780493,3224.3,3223.4,0.7717]
[1736888137886,2.93293028,3224.1,3223.4,0.7717]
[1736888138187,3.10214,3223.6,3223.4,0.7717]
[1736888138943,3.10221,3223.5,3223.4,0.7717]
[1736888139252,2.93293028,3223.8,3222.9,0.7717]
[1736888139560,2.93293028,3223.5,3222.9,0.7717]
[1736888139760,3.10265,3223.1,3222.9,0.7717]
[1736888139981,3.10269,3223.0,3222.9,0.7717]
[1736888140355,3.10305,3222.7,3222.4,0.7717]
[1736888141185,3.10311,3222.6,3222.4,0.7717]
[1736888141353,3.413421,3222.6,3222.4,0.7717]
[1736888141548,0.310311,3222.6,3222.4,0.7717]
[1736888141749,3.10304,3222.7,3222.4,0.7717]
[1736888142077,3.10261,3223.1,3222.4,0.7717]
[1736888142251,3.10272,3223.0,3222.4,0.7717]
[1736888142453,0.192,3223.2,3222.4,0.7717]
[1736888142688,6.03513028,3223.6,3222.4,3.87497]
[1736888142861,3.56577261,3223.6,3222.5,0.7717]
[1736888143060,3.56577261,3223.6,3222.6,0.7717]
[1736888143274,3.10242,3223.3,3222.6,0.7717]
[1736888143487,3.10225,3223.5,3222.6,0.7717]
[1736888143685,3.56577261,3223.6,3222.6,0.7717]
[1736888143848,3.10241,3223.3,3222.6,0.7717]
[1736888144262,3.10224,3223.5,3222.6,0.7717]
[1736888144458,3.10233,3223.4,3222.6,0.7717]
[1736888145275,0.192,3223.8,3222.7,0.7717]
[1736888145592,0.192,3223.8,3222.9,0.7717]
[1736888145758,0.192,3223.8,3222.8,1.93196267]
[1736888146076,3.294,3223.8,3222.9,0.7717]
[1736888146278,0.192,3223.8,3222.9,0.7717]
[1736888146593,3.10211,3223.7,3223.0,0.832]
[1736888148204,3.10225,3223.5,3223.0,0.832]
[1736888149104,3.10232,3223.4,3223.0,0.832]
[1736888149307,3.10244,3223.3,3223.0,0.832]
[1736888150764,3.431461,3223.7,3223.0,0.832]
[1736888150765,3.10222,3223.5,3223.0,0.832]
[1736888151492,3.10241,3223.3,3223.0,0.832]
[1736888151668,0.329411,3223.7,3223.0,0.832]
[1736888151669,3.412751,3223.2,3223.0,0.832]
[1736888151995,3.10251,3223.2,3223.0,0.832]
[1736888152373,3.10267,3223.1,3222.7,0.832]
[1736888152573,3.1027,3223.0,3222.7,0.832]
[1736888152874,3.10286,3222.9,3222.7,0.832]
[1736888153074,3.10289,3222.8,3222.3,0.832]
[1736888153395,3.10302,3222.7,3222.3,0.832]
[1736888153595,2.93293028,3222.7,3222.3,0.832]
[1736888153768,3.10315,3222.6,3222.3,0.832]
[1736888154154,3.10294,3222.8,3222.3,0.832]
[1736888154596,3.10302,3222.7,3222.3,0.832]
[1736888154974,6.34593028,3223.0,3222.3,0.832]
[1736888154975,3.1029,3222.8,3222.3,0.832]
[1736888156466,0.63546428,3223.4,3222.3,0.832]
[1736888156467,2.93293028,3223.3,3222.3,0.832]
[1736888156673,3.10271,3223.0,3222.3,0.832]
[1736888157171,3.75936946,3223.2,3222.3,0.832]
[1736888157384,3.10279,3223.0,3222.3,0.832]
[1736888158796,0.65683946,3223.2,3222.3,0.832]
[1736888159099,3.10272,3223.0,3222.3,0.832]
[1736888159967,3.10252,3223.2,3222.3,0.832]
[1736888160189,3.10232,3223.4,3222.5,0.832]
[1736888160392,3.10241,3223.3,3222.5,0.832]
[1736888160704,3.10241,3223.3,3221.8,2.93293028]
[1736888160705,3.10225,3223.5,3222.6,0.832]
[1736888160869,3.10225,3223.5,3221.7,3.10389]
[1736888160870,0.192,3224.0,3222.7,0.86302558]
[1736888161065,3.10185,3223.9,3222.9,3.10271]
[1736888161265,3.10185,3223.9,3222.5,0.55]
[1736888161266,0.192,3224.0,3223.0,0.7878]
[1736888161474,0.192,3224.0,3223.2,3.1025]
[1736888161764,3.10126,3224.5,3223.5,0.7878]
[1736888161765,0.192,3224.5,3223.5,0.7878]
[1736888161964,3.10156,3224.2,3223.5,0.7878]
[1736888163710,3.1016,3224.2,3223.5,0.7878]
[1736888164006,0.502126,3224.5,3223.5,0.7878]
[1736888164165,3.10154,3224.2,3223.5,0.7878]
[1736888165213,3.10165,3224.1,3223.5,0.7878]
[1736888165571,3.10153,3224.3,3223.5,0.7878]
[1736888166758,0.502126,3224.5,3223.5,0.7878]
[1736888167006,3.10147,3224.3,3223.5,0.7878]
[1736888167726,2.93293028,3224.7,3223.7,0.7878]
[1736888167727,3.10109,3224.7,3223.7,0.7878]
[1736888167929,3.12493028,3225.3,3223.9,0.7878]
[1736888168219,3.10097,3224.8,3223.9,0.7878]
[1736888168768,6.03375028,3225.0,3223.9,0.7878]
[1736888169403,3.10123,3224.6,3223.9,0.7878]
[1736888169905,2.93293028,3225.0,3223.9,0.7878]
[1736888170116,3.10109,3224.7,3223.9,0.7878]
[1736888171541,3.10118,3224.6,3223.9,0.7878]
[1736888172715,2.93293028,3224.4,3223.9,0.7878]
[1736888172912,3.10185,3223.9,3223.6,0.7878]
[1736888173532,3.29344,3224.3,3223.6,0.7878]
[1736888173533,3.10195,3223.8,3223.6,0.7878]
[1736888174107,3.10178,3224.0,3223.6,0.7878]
[1736888176028,2.93293028,3224.1,3223.0,0.7878]
[1736888176194,3.10225,3223.5,3223.0,0.7878]
[1736888176596,3.10235,3223.4,3223.0,0.7878]
[1736888176794,3.10235,3223.4,3222.7,2.74011966]
[1736888176795,2.93293028,3223.2,3222.7,2.74011966]
[1736888177109,8.96875056,3222.8,3222.7,1.93111966]
[1736888177441,3.10308,3222.6,3222.5,1.93111966]
[1736888177932,0.192,3222.7,3222.5,1.93111966]
[1736888178243,0.192,3222.9,3222.5,2.74011966]
[1736888178416,3.10254,3223.2,3222.5,2.74011966]
[1736888178617,3.10254,3223.2,3222.5,0.809]
[1736888178618,3.29454,3223.2,3222.5,0.809]
[1736888179008,3.10262,3223.1,3222.5,0.809]
[1736888180520,0.192,3223.2,3222.5,0.809]
[1736888181535,3.29451,3223.2,3222.5,0.809]
[1736888182349,0.192,3223.2,3222.5,0.809]
[1736888182550,3.2945,3223.2,3222.5,0.809]
[1736888183071,3.10261,3223.1,3222.5,0.809]
[1736888184816,3.10262,3223.1,3222.5,0.809]
[1736888185319,3.1028,3222.9,3222.5,0.809]
[1736888185728,3.1026,3223.1,3222.5,0.809]
[1736888185945,0.192,3223.4,3222.5,0.809]
[1736888186134,3.10253,3223.2,3222.5,0.809]
[1736888186459,3.29434,3223.4,3222.5,0.809]
[1736888186632,0.192,3223.4,3222.5,0.809]
[1736888187430,3.10243,3223.3,3222.5,0.809]
[1736888187958,3.29431,3223.4,3222.6,0.809]
[1736888189051,0.192,3223.4,3222.6,0.809]
[1736888189220,3.10242,3223.3,3222.6,0.809]
[1736888190151,0.192,3223.4,3222.6,0.809]
[1736888190949,2.93293028,3223.0,3222.6,0.809]
[1736888191361,6.03570028,3223.0,3222.6,0.809]
[1736888191969,3.10287,3222.9,3222.6,0.809]
[1736888195986,6.03534028,3223.3,3222.6,0.809]
[1736888196199,3.10268,3223.1,3222.6,0.809]
[1736888196770,3.10269,3223.0,3222.6,0.809]
[1736888197682,6.03534028,3223.3,3222.6,0.809]
[1736888197683,3.10261,3223.1,3222.6,0.809]
[1736888198411,3.10246,3223.3,3222.6,0.809]
[1736888198618,0.192,3223.5,3221.9,3.1347514]
[1736888198619,3.10209,3223.7,3222.8,3.10286]
[1736888198770,3.10219,3223.6,3222.8,0.809]
[1736888198970,6.03512028,3223.6,3222.8,0.809]
[1736888200220,3.10195,3223.8,3222.9,0.809]
[1736888200424,0.192,3223.9,3223.2,0.809]
[1736888200568,6.03452028,3224.2,3223.3,0.809]
[1736888200912,3.10165,3224.1,3223.1,3.10254]
[1736888201096,2.93293028,3223.9,3223.2,0.809]
[1736888201298,2.93293028,3223.6,3223.2,0.809]
[1736888201474,3.10224,3223.5,3223.2,0.809]
[1736888201817,2.93293028,3223.3,3222.6,0.809]
[1736888201997,3.10272,3223.0,3222.6,0.809]
[1736888202173,3.10296,3222.8,3222.6,0.809]
[1736888202905,6.03564028,3223.0,3222.6,0.809]
[1736888206699,3.29456,3223.2,3222.6,0.809]
[1736888207422,3.10261,3223.1,3222.6,0.809]
[1736888208622,3.10261,3223.1,3222.6,0.559]
[1736888209029,3.49444995,3223.1,3222.6,0.559]
[1736888209740,0.39183995,3223.1,3222.6,0.559]
[1736888211118,0.38810543,3223.1,3222.6,0.559]
[1736888212307,6.03534028,3223.3,3222.6,0.559]
[1736888213499,2.93293028,3223.3,3222.6,0.559]
[1736888213698,3.10253,3223.2,3222.6,0.559]
[1736888214120,3.10261,3223.1,3222.6,0.559]
[1736888214634,2.93293028,3223.3,3222.6,0.559]
[1736888214635,6.03541028,3223.3,3222.6,0.559]
[1736888214929,0.60354103,3223.2,3222.6,0.559]
[1736888215630,3.70607103,3223.2,3222.6,0.559]
[1736888218245,6.03467028,3224.0,3222.7,0.82632898]
[1736888218544,3.10184,3223.9,3223.0,3.10267]
[1736888218730,3.10184,3223.9,3223.1,0.7953]
[1736888219303,3.10193,3223.8,3223.1,0.7953]
[1736888220109,3.10193,3223.8,3223.1,0.5453]
[1736888220348,2.93293028,3223.7,3223.1,0.5453]
[1736888220845,3.10138,3224.4,3223.2,0.03102514]
[1736888221049,3.12493028,3224.5,3223.4,3.10229]
[1736888221345,3.10135,3224.4,3223.5,3.10215]
[1736888221550,3.10145,3224.3,3223.3,3.10234]
[1736888221744,3.10145,3224.3,3223.4,1.93075057]
[1736888222054,3.10145,3224.3,3223.4,5.03304057]
[1736888222247,2.93293028,3224.8,3223.5,1.93075057]
[1736888222420,3.10122,3224.6,3223.7,3.102]
[1736888222848,3.10098,3224.8,3223.5,1.93075057]
[1736888223149,3.29298,3224.8,3224.0,0.8272]
[1736888223356,0.192,3224.9,3224.0,3.10172]
[1736888223556,0.192,3224.9,3224.1,0.8272]
[1736888223758,3.29287,3224.9,3224.1,0.8272]
[1736888223963,3.10097,3224.8,3224.1,0.8272]
[1736888224149,3.10106,3224.7,3224.1,0.8272]
[1736888224955,3.91550003,3224.9,3224.1,0.8272]
[1736888226023,0.81458003,3224.9,3224.1,0.8272]
[1736888226254,3.10097,3224.8,3224.1,0.8272]
[1736888227114,3.492525,3224.8,3224.1,0.8272]
[1736888229162,0.391555,3224.8,3224.1,0.8272]
[1736888229362,3.492545,3224.8,3224.1,0.8272]
[1736888229562,3.10099,3224.8,3224.1,0.8272]
[1736888231841,6.43303028,3225.4,3224.1,0.8272]
[1736888232172,3.10081,3225.0,3224.1,3.10163]
[1736888232368,3.10081,3225.0,3224.2,0.7895]
[1736888234471,3.10087,3224.9,3224.2,0.7895]
[1736888234942,2.93293028,3224.5,3224.2,0.5395]
[1736888235140,3.10152,3224.3,3223.3,1.93086543]
[1736888235340,6.03454028,3224.2,3223.3,1.93086543]
[1736888235544,3.10175,3224.0,3223.3,1.93086543]
[1736888235738,0.60344503,3224.3,3223.3,1.93086543]
[1736888235943,0.60344503,3224.3,3223.2,0.60799244]
[1736888236577,0.191,3224.5,3223.3,3.10241]
[1736888236879,3.29225,3224.5,3223.7,3.10198]
[1736888237378,3.29225,3224.5,3223.5,3.10212]
[1736888237584,3.1014,3224.4,3223.5,3.10212]
[1736888237946,3.10092,3224.9,3224.0,0.81]
[1736888238189,3.10092,3224.9,3224.1,0.81]
[1736888238480,3.75441313,3224.9,3224.1,0.81]
[1736888239788,0.65349313,3224.9,3224.1,0.81]
[1736888239992,0.7501,3225.5,3224.3,0.81]
[1736888240280,0.7501,3225.8,3224.8,0.81]
[1736888240440,0.191,3225.8,3224.8,0.56]
[1736888240638,3.10018,3225.7,3224.8,0.56]
[1736888240878,3.429298,3225.7,3224.8,3.66096]
[1736888241082,3.429298,3225.7,3224.5,0.62015985]
[1736888241291,3.429298,3225.7,3224.7,3.10099]
[1736888241586,0.329118,3225.7,3224.7,3.10099]
[1736888241745,3.10021,3225.6,3224.7,3.10099]
[1736888242146,2.93293028,3225.5,3224.5,3.72136985]
[1736888242448,3.10046,3225.4,3224.5,3.72136985]
[1736888242952,3.10046,3225.4,3224.5,3.10121]
[1736888243379,3.10046,3225.4,3224.6,0.81]
[1736888243798,2.93293028,3225.2,3224.6,0.81]
[1736888243980,3.10068,3225.1,3224.6,0.81]
[1736888244286,2.93293028,3225.2,3224.6,0.56]
[1736888244488,3.10053,3225.3,3224.6,0.56]
[1736888246518,1.43633903,3225.4,3224.6,0.56]
[1736888246811,0.60333903,3225.4,3224.6,0.56]
[1736888248213,0.60333903,3225.4,3224.6,3.41113]
[1736888248369,0.191,3225.6,3224.6,0.31]
[1736888248576,3.76593028,3226.1,3224.7,0.03100575]
[1736888248775,4.12372,3226.1,3225.1,3.10058]
[1736888249098,6.03245028,3226.4,3224.8,3.10096]
[1736888249411,3.29053,3226.3,3225.3,3.10046]
[1736888249624,0.62234603,3226.2,3224.7,2.93293028]
[1736888249912,0.62234603,3226.2,3225.4,3.10038]
[1736888251411,0.62234603,3226.2,3225.5,0.81]
[1736888252406,3.72196603,3226.2,3225.5,0.81]
[1736888253105,0.62234603,3226.2,3225.5,0.81]
[1736888253308,3.09995,3225.9,3224.7,0.81]
[1736888253526,0.393295,3225.8,3224.9,0.61740931]
[1736888253832,3.10001,3225.8,3224.9,0.61740931]
[1736888253993,3.10001,3225.8,3224.9,3.71824931]
[1736888254187,0.833,3226.0,3225.0,3.10076]
[1736888254386,0.833,3226.0,3225.1,0.81]
[1736888254587,2.93293028,3225.5,3224.8,0.81]
[1736888254788,6.03358028,3225.2,3224.5,0.81]
[1736888254988,2.93293028,3225.2,3224.2,1.93086543]
[1736888255193,2.93293028,3224.9,3224.2,2.74086543]
[1736888255423,3.10125,3224.5,3224.2,1.93086543]
[1736888255588,3.12393028,3224.6,3224.2,1.93086543]
[1736888255788,0.39569303,3224.5,3223.9,0.81]
[1736888255989,3.10141,3224.4,3223.9,0.81]
[1736888256242,3.10145,3224.3,3223.9,0.81]
[1736888256537,3.10145,3224.3,3223.5,0.81]
[1736888256538,2.93293028,3224.3,3223.5,0.81]
[1736888257187,3.10171,3224.1,3223.5,0.81]
[1736888257392,3.70517403,3224.1,3223.5,0.81]
[1736888257595,0.60346403,3224.1,3223.5,0.81]
[1736888257793,6.03442028,3224.3,3223.5,0.81]
[1736888258243,3.10155,3224.2,3223.5,0.81]
[1736888259739,3.10155,3224.2,3223.5,0.7132]
[1736888262745,2.93293028,3224.3,3223.5,0.7132]
[1736888263309,0.39569303,3224.5,3223.5,0.7132]
[1736888263523,0.33286233,3224.4,3223.6,3.10211]
[1736888264044,3.43422233,3224.4,3223.5,0.7132]
[1736888264196,3.43422233,3224.4,3223.5,3.8154]
[1736888264798,0.33286233,3224.4,3223.6,3.10211]
[1736888264998,3.43422233,3224.4,3223.5,0.7132]
[1736888265234,0.36252223,3224.3,3223.5,0.7132]
[1736888265743,0.33286233,3224.4,3223.6,3.10211]
[1736888267238,2.93293028,3224.3,3223.5,0.7132]
[1736888267414,6.03446028,3224.3,3223.5,0.7132]
[1736888268712,2.93293028,3224.3,3223.5,0.7132]
[1736888268933,0.33286233,3224.4,3223.5,0.7132]
[1736888269244,0.33286233,3224.4,3223.6,3.10211]
[1736888269445,0.36251423,3224.3,3223.5,0.7132]
[1736888270156,0.36251423,3224.3,3223.5,3.8154]
[1736888270349,0.36251423,3224.3,3223.6,3.10211]
[1736888270510,0.33286233,3224.4,3223.6,3.10211]
[1736888271344,0.33286233,3224.4,3223.5,0.7132]
[1736888271546,3.0,3224.6,3223.8,3.10192]
[1736888272463,3.0,3224.6,3223.5,0.7132]
[1736888272464,6.10117,3224.6,3223.7,3.10201]
[1736888274857,2.93293028,3224.6,3223.5,0.7132]
[1736888275231,5.93293028,3224.6,3223.5,0.7132]
[1736888275415,3.0,3224.5,3223.5,0.7132]
[1736888275619,0.89329303,3224.4,3223.5,0.7132]
[1736888276554,3.99470303,3224.4,3223.5,0.7132]
[1736888276759,3.10148,3224.3,3223.5,0.7132]
[1736888277461,3.10148,3224.3,3223.5,3.81541]
[1736888277757,3.99465303,3224.4,3223.6,3.10211]
[1736888277919,0.6994653,3224.3,3223.5,0.7132]
[1736888278319,0.6994653,3224.3,3223.3,1.93086543]
[1736888278320,2.93293028,3224.0,3223.3,1.93086543]
[1736888278629,3.10212,3223.6,3223.1,2.72116543]
[1736888278835,3.10196,3223.8,3223.1,2.72116543]
[1736888279162,3.10196,3223.8,3223.1,0.7903]
[1736888279945,2.93293028,3224.0,3223.1,0.7903]
[1736888280144,3.10191,3223.9,3223.1,0.7903]
[1736888280321,3.61180031,3224.0,3223.1,0.7903]
[1736888280522,3.78065003,3224.0,3223.1,0.7903]
[1736888280840,3.78065003,3224.0,3223.1,3.89283]
[1736888280841,3.10178,3224.0,3223.1,3.89283]
[1736888283650,0.7542,3224.1,3223.1,3.89283]
[1736888283651,3.10184,3223.9,3223.1,3.89283]
[1736888283853,3.10184,3223.9,3223.1,0.7903]
[1736888284085,6.85586,3224.1,3223.2,3.10247]
[1736888284699,6.85586,3224.1,3223.1,0.7903]
[1736888284700,3.7542,3224.1,3223.1,0.7903]
[1736888284864,7.54368303,3224.1,3223.2,3.10241]
[1736888285065,3.10175,3224.0,3223.2,3.10241]
[1736888285391,4.44201303,3224.1,3223.2,3.10243]
[1736888285392,3.68781303,3224.1,3223.2,3.10243]
[1736888285788,6.78950303,3224.1,3223.2,3.10243]
[1736888285964,3.68781303,3224.1,3223.1,0.7903]
[1736888286284,0.66207433,3224.0,3223.1,0.7903]
[1736888286490,3.76385433,3224.0,3223.1,0.7903]
[1736888286983,3.76385433,3224.0,3223.2,3.10247]
[1736888286984,0.66207433,3224.0,3223.2,3.10247]
[1736888287795,0.68781303,3224.1,3223.4,3.1023]
[1736888288110,0.68781303,3224.1,3223.2,3.10245]
[1736888288313,3.78948303,3224.1,3223.1,0.8207]
[1736888288604,0.68781303,3224.1,3223.4,0.8207]
[1736888288811,0.191,3224.3,3223.4,3.92299]
[1736888289578,3.10158,3224.2,3223.4,0.8207]
[1736888289966,3.10158,3224.2,3223.4,3.92298]
[1736888291030,0.9719,3224.5,3223.5,0.8207]
[1736888291240,3.90483028,3224.5,3223.5,0.8207]
[1736888291393,2.93293028,3224.2,3223.5,0.8207]
[1736888291735,3.10186,3223.9,3223.5,0.8207]
[1736888291939,0.7809,3224.1,3223.2,0.8207]
[1736888292104,3.10186,3223.9,3223.2,0.8207]
[1736888292292,3.10194,3223.8,3223.2,0.8207]
[1736888292490,3.412134,3223.8,3223.2,0.8207]
[1736888293028,0.310194,3223.8,3223.2,0.8207]
[1736888293516,3.412134,3223.8,3223.2,0.8207]
[1736888294639,0.310194,3223.8,3223.2,0.8207]
[1736888295234,3.412134,3223.8,3223.2,0.8207]
[1736888295422,0.3412134,3223.7,3223.2,0.8207]
[1736888296027,3.10176,3224.0,3223.2,0.8207]
[1736888296395,0.7809,3224.1,3223.2,0.8207]
[1736888296691,3.10174,3224.0,3223.2,0.8207]
[1736888297035,3.10184,3223.9,3223.2,0.8207]
[1736888298033,3.88257,3224.1,3223.2,0.8207]
[1736888298237,0.388257,3224.0,3223.2,3.92319]
[1736888298639,3.489997,3224.0,3223.2,0.8207]
[1736888298792,3.10185,3223.9,3223.2,0.8207]
[1736888299392,0.388257,3224.0,3223.2,0.8207]
[1736888300043,0.388257,3224.0,3223.2,2.75156543]
[1736888300690,0.72037773,3223.9,3223.2,2.75156543]
[1736888300894,0.72037773,3223.9,3223.3,1.93086543]
[1736888301539,3.82222773,3223.9,3223.3,1.93086543]
[1736888301906,3.10209,3223.7,3223.3,1.93086543]
[1736888302544,0.72037773,3223.9,3223.2,2.75156543]
[1736888302746,0.388257,3224.0,3223.2,2.75156543]
[1736888302908,0.7809,3224.1,3223.2,2.75156543]
[1736888303109,3.10184,3223.9,3223.3,1.93086543]
[1736888303811,3.10184,3223.9,3223.2,2.75156543]
[1736888304240,3.10196,3223.8,3223.2,2.75156543]
[1736888304597,3.0,3224.0,3223.2,2.75156543]
[1736888304598,6.10175,3224.0,3223.2,0.8207]
[1736888304799,0.98155803,3223.9,3223.2,0.8207]